[Event "European Online Club-ch-B 2021"]
[Site "Online"]
[Date "2021.03.27"]
[Round "2.7"]
[White "Pillard, Valentin"]
[Black "Veinberg, Nimrod"]
[Result "0-1"]
[ECO "C45"]
[WhiteElo "2103"]
[BlackElo "2404"]
[Annotator "NA"]
[PlyCount "106"]
[EventDate "2021.03.27"]
[EventType "team-tourn"]
[EventCountry "NET"]
[SourceTitle "playchess.com"]
[Source "ChessBase"]
[SourceQuality "1"]
[TimeControl "900+5"]

1. e4 {[%emt 0:00:00]} e5 {[%emt 0:00:02]} 2. Nf3 {[%emt 0:00:04]} Nc6 {[%emt 0:00:02]} 3. d4 {[%emt 0:00:02]} exd4 {[%emt 0:00:01]} 4. Nxd4 {[%emt 0:00:03]} Bc5 {[%emt 0:00:06]} 5. Nxc6 {[%emt 0:00:03]} Qf6 {[%emt 0:00:04]} 6. Qf3 {[%emt 0:00:05]} bxc6 {[%emt 0:00:04]} 7. Nd2 {[%emt 0:00:49]} d6 {[%emt 0:01:06]} 8. Nb3 {[%emt 0:00:11]} Bb6 {[%emt 0:00:07]} 9. a4 {[%emt 0:01:02]} a5 {[%emt 0:00:44]} 10. Bd2 {[%emt 0:00:06]} Qxf3 {[%emt 0:02:41]} 11. gxf3 {[%emt 0:00:03]} Be6 {[%emt 0:00:14]} 12. Bc3 {[%emt 0:00:32]} f6 {[%emt 0:00:16]} 13. Nd4 {[%emt 0:00:44]} Bxd4 {[%emt 0:00:04]} 14. Bxd4 {[%emt 0:00:02]} Ne7 {[%emt 0:00:01]} 15. Rg1 {[%emt 0:00:24]} Kf7 {[%emt 0:00:03]} 16. b3 {[%emt 0:01:23]} c5 {[%emt 0:00:05]} 17. Bc3 {[%emt 0:00:20]} g5 {[%emt 0:00:10]} 18. O-O-O {[%emt 0:03:05]} Ng6 {[%emt 0:00:07]} 19. Bb5 {[%emt 0:00:21]} h5 {[%emt 0:00:49]} 20. Bc6 {[%emt 0:02:09]} Ra6 {[%emt 0:00:13]} 21. Bb5 {[%emt 0:00:16]} Raa8 {[%emt 0:00:02]} 22. Bc6 {[%emt 0:00:02]} Ra7 {[%emt 0:00:02]} 23. e5 {[%emt 0:01:04]} Nxe5 {[%emt 0:00:48]} 24. Bxe5 {[%emt 0:00:03]} dxe5 {[%emt 0:00:01]} 25. c4 {[%emt 0:00:45]} Ra6 {[%emt 0:00:15]} 26. Be4 {[%emt 0:01:11]} Rd6 {[%emt 0:00:08]} 27. Rde1 {[%emt 0:00:26]} h4 {[%emt 0:00:25]} 28. Bc2 {[%emt 0:00:38]} Rhd8 {[%emt 0:00:16]} 29. Re2 {[%emt 0:00:04]} Rd4 {[%emt 0:00:02]} 30. Rge1 {[%emt 0:00:23]} Rb8 {[%emt 0:00:12]} 31. Re3 {[%emt 0:00:08]} Bd7 {[%emt 0:00:04]} 32. Be4 {[%emt 0:00:06]} Be6 {[%emt 0:00:12]} 33. Bc2 {[%emt 0:00:01]} Rd6 {[%emt 0:00:02]} 34. Rg1 {[%emt 0:00:09]} Rbd8 {[%emt 0:00:27]} 35. Re2 {[%emt 0:00:05]} Bh3 {[%emt 0:00:01]} 36. Bb1 {[%emt 0:00:20]} Rd4 {[%emt 0:00:06]} 37. Bc2 {[%emt 0:00:05]} R8d6 {[%emt 0:00:15]} 38. Bb1 {[%emt 0:00:07]} Bd7 {[%emt 0:00:01]} 39. Bc2 {[%emt 0:00:32]} Bc6 {[%emt 0:00:03]} 40. Re3 {[%emt 0:00:01]} Rf4 {[%emt 0:00:09]} 41. Bd1 {[%emt 0:00:03]} g4 {[%emt 0:00:19]} 42. fxg4 {[%emt 0:00:06]} Rxf2 {[%emt 0:00:07]} 43. g5 {[%emt 0:00:01]} Rdd2 {[%emt 0:01:50]} 44. Bh5+ {[%emt 0:00:25]} Ke6 {[%emt 0:00:33]} 45. g6 {[%emt 0:00:09]} Ra2 {[%emt 0:00:07]} 46. Kb1 {[%emt 0:00:04]} Rfb2+ {[%emt 0:00:02]} 47. Kc1 {[%emt 0:00:01]} Rxh2 {[%emt 0:00:00]} 48. Kb1 {[%emt 0:00:09]} Rhb2+ {[%emt 0:01:16]} 49. Kc1 {[%emt 0:00:01]} f5 {[%emt 0:00:26]} 50. g7 {[%emt 0:00:04]} Ra1+ {[%emt 0:00:03]} 51. Kxb2 {[%emt 0:00:02]} Rxg1 {[%emt 0:00:00]} 52. Rh3 {[%emt 0:00:15]} Rxg7 {[%emt 0:00:07]} 53. Rxh4 {[%emt 0:00:01]} Rh7 {[%emt 0:00:03]} 0-1

[Event "European Online Club-ch-B 2021"]
[Site "Online"]
[Date "2021.03.27"]
[Round "2.8"]
[White "Zlatin, Alexander"]
[Black "Ferey, Antonin"]
[Result "1-0"]
[ECO "C54"]
[WhiteElo "2343"]
[BlackElo "2148"]
[Annotator "NA"]
[PlyCount "95"]
[EventDate "2021.03.27"]
[EventType "team-tourn"]
[EventCountry "NET"]
[SourceTitle "playchess.com"]
[Source "ChessBase"]
[SourceQuality "1"]
[TimeControl "900+5"]

1. e4 {[%emt 0:00:00]} e5 {[%emt 0:00:15]} 2. Nf3 {[%emt 0:00:04]} Nc6 {[%emt 0:00:03]} 3. Bc4 {[%emt 0:00:01]} Bc5 {[%emt 0:00:05]} 4. c3 {[%emt 0:00:02]} Nf6 {[%emt 0:00:05]} 5. d3 {[%emt 0:00:01]} a6 {[%emt 0:00:02]} 6. a4 {[%emt 0:00:03]} Ba7 {[%emt 0:00:02]} 7. Nbd2 {[%emt 0:00:07]} O-O {[%emt 0:00:11]} 8. Bb3 {[%emt 0:00:07]} d6 {[%emt 0:00:02]} 9. h3 {[%emt 0:00:01]} Be6 {[%emt 0:00:05]} 10. Nf1 {[%emt 0:00:21]} d5 {[%emt 0:00:37]} 11. Ng3 {[%emt 0:00:59]} dxe4 {[%emt 0:00:59]} 12. dxe4 {[%emt 0:00:00]} Bxb3 {[%emt 0:00:04]} 13. Qxb3 {[%emt 0:00:05]} Qd3 {[%emt 0:00:12]} 14. Nd2 {[%emt 0:01:38]} Na5 {[%emt 0:00:22]} 15. Qd1 {[%emt 0:00:46]} Rad8 {[%emt 0:02:32]} 16. Qe2 {[%emt 0:00:13]} Qc2 {[%emt 0:00:29]} 17. O-O {[%emt 0:03:00]} Rd3 {[%emt 0:00:04]} 18. Nf3 {[%emt 0:01:09]} Qxe2 {[%emt 0:00:15]} 19. Nxe2 {[%emt 0:00:00]} Nb3 {[%emt 0:00:31]} 20. Ra3 {[%emt 0:00:24]} Nxc1 {[%emt 0:00:05]} 21. Nxc1 {[%emt 0:00:00]} Rdd8 {[%emt 0:01:12]} 22. Re1 {[%emt 0:00:13]} Nd7 {[%emt 0:01:07]} 23. a5 {[%emt 0:00:23]} f6 {[%emt 0:00:26]} 24. Nd3 {[%emt 0:01:18]} Nc5 {[%emt 0:00:13]} 25. Nxc5 {[%emt 0:00:03]} Bxc5 {[%emt 0:00:02]} 26. b4 {[%emt 0:00:00]} Ba7 {[%emt 0:00:07]} 27. Kf1 {[%emt 0:00:07]} Rd3 {[%emt 0:00:22]} 28. Ke2 {[%emt 0:00:05]} Rfd8 {[%emt 0:00:02]} 29. Rc1 {[%emt 0:00:19]} Kf7 {[%emt 0:01:05]} 30. Rb3 {[%emt 0:00:17]} c6 {[%emt 0:00:19]} 31. Rcb1 {[%emt 0:00:11]} Ke6 {[%emt 0:00:22]} 32. Nd4+ {[%emt 0:00:31]} Bxd4 {[%emt 0:01:49]} 33. Kxd3 {[%emt 0:00:03]} Bxf2+ {[%emt 0:00:02]} 34. Ke2 {[%emt 0:00:01]} Ba7 {[%emt 0:00:03]} 35. Rd1 {[%emt 0:00:01]} Ra8 {[%emt 0:00:12]} 36. g4 {[%emt 0:00:15]} h5 {[%emt 0:00:10]} 37. gxh5 {[%emt 0:00:29]} Rh8 {[%emt 0:00:04]} 38. c4 {[%emt 0:00:02]} Bd4 {[%emt 0:00:12]} 39. b5 {[%emt 0:00:14]} Rxh5 {[%emt 0:00:50]} 40. bxa6 {[%emt 0:00:03]} bxa6 {[%emt 0:00:02]} 41. Rdd3 {[%emt 0:00:18]} Rh4 {[%emt 0:00:13]} 42. Rg3 {[%emt 0:00:13]} Rxe4+ {[%emt 0:00:28]} 43. Kd3 {[%emt 0:01:13]} Rh4 {[%emt 0:00:02]} 44. Kc2 {[%emt 0:00:10]} g5 {[%emt 0:00:38]} 45. Rb8 {[%emt 0:00:57]} e4 {[%emt 0:00:02]} 46. Ra8 {[%emt 0:00:09]} Be5 {[%emt 0:00:06]} 47. Rb3 {[%emt 0:00:10]} Rxh3 {[%emt 0:00:06]} 48. Rxh3 {[%emt 0:00:03]} 1-0

[Event "European Online Club-ch-B 2021"]
[Site "Online"]
[Date "2021.03.27"]
[Round "2.9"]
[White "Sorensen, Hampus"]
[Black "Santos Latasa, Jaime"]
[Result "1/2-1/2"]
[ECO "D30"]
[WhiteElo "2395"]
[BlackElo "2608"]
[Annotator "ChessBase"]
[PlyCount "101"]
[EventDate "2021.03.27"]
[EventType "team-tourn"]
[EventCountry "NET"]
[SourceTitle "playchess.com"]
[Source "ChessBase"]
[SourceQuality "1"]
[TimeControl "900+5"]

1. d4 {[%emt 0:00:00]} Nf6 {[%emt 0:00:03]} 2. c4 {[%emt 0:00:03]} e6 {[%emt 0:00:02]} 3. Nf3 {[%emt 0:00:02]} d5 {[%emt 0:00:02]} 4. Bg5 {[%emt 0:00:03]} h6 {[%emt 0:00:02]} 5. Bxf6 {[%emt 0:00:01]} Qxf6 {[%emt 0:00:03]} 6. e3 {[%emt 0:00:28]} g6 {[%emt 0:00:10]} 7. Bd3 {[%emt 0:00:15]} Bg7 {[%emt 0:00:02]} 8. Nc3 {[%emt 0:00:55]} c6 {[%emt 0:00:03]} 9. O-O {[%emt 0:00:04]} O-O {[%emt 0:00:03]} 10. Re1 {[%emt 0:00:54]} Qd8 {[%emt 0:00:03]} 11. e4 {[%emt 0:00:23]} c5 {[%emt 0:00:10]} 12. cxd5 {[%emt 0:01:24]} cxd4 {[%emt 0:00:09]} 13. Nb5 {[%emt 0:00:02]} exd5 {[%emt 0:01:02]} 14. Nbxd4 {[%emt 0:00:32]} Nc6 {[%emt 0:01:43]} 15. Nxc6 {[%emt 0:00:34]} bxc6 {[%emt 0:00:02]} 16. Qc2 {[%emt 0:00:05]} Rb8 {[%emt 0:00:21]} 17. Rab1 {[%emt 0:00:09]} Bg4 {[%emt 0:00:08]} 18. Nd2 {[%emt 0:00:28]} Qd6 {[%emt 0:00:16]} 19. Nb3 {[%emt 0:00:16]} Rfe8 {[%emt 0:00:13]} 20. h3 {[%emt 0:00:21]} Be6 {[%emt 0:00:52]} 21. Nc5 {[%emt 0:00:46]} dxe4 {[%emt 0:01:25]} 22. Nxe4 {[%emt 0:00:18]} Qf4 {[%emt 0:01:09]} 23. b3 {[%emt 0:00:19]} Bd5 {[%emt 0:00:12]} 24. Qc1 {[%emt 0:00:39]} Qh4 {[%emt 0:00:08]} 25. Nc3 {[%emt 0:01:36]} Be6 {[%emt 0:01:35]} 26. Qc2 {[%emt 0:01:19]} Rbd8 {[%emt 0:00:15]} 27. Rbd1 {[%emt 0:00:06]} Qb4 {[%emt 0:00:25]} 28. Na4 {[%emt 0:00:30]} Bd5 {[%emt 0:00:11]} 29. Rxe8+ {[%emt 0:00:56]} Rxe8 {[%emt 0:00:04]} 30. Qc1 {[%emt 0:00:35]} Bd4 {[%emt 0:00:55]} 31. Bf1 {[%emt 0:00:43]} Bg7 {[%emt 0:00:31]} 32. Qc5 {[%emt 0:00:53]} a5 {[%emt 0:01:15]} 33. Qxb4 {[%emt 0:00:36]} axb4 {[%emt 0:00:03]} 34. Nb6 {[%emt 0:00:01]} Be4 {[%emt 0:00:26]} 35. Bc4 {[%emt 0:00:38]} Bf6 {[%emt 0:01:00]} 36. Re1 {[%emt 0:00:06]} Bd4 {[%emt 0:01:12]} 37. Bd3 {[%emt 0:00:44]} f5 {[%emt 0:00:26]} 38. Nc4 {[%emt 0:00:05]} Re6 {[%emt 0:00:03]} 39. Bxe4 {[%emt 0:00:08]} fxe4 {[%emt 0:00:02]} 40. Re2 {[%emt 0:00:04]} Kg7 {[%emt 0:00:05]} 41. Kf1 {[%emt 0:00:02]} c5 {[%emt 0:00:03]} 42. Nd2 {[%emt 0:00:17]} e3 {[%emt 0:00:04]} 43. Nc4 {[%emt 0:00:04]} Rf6 {[%emt 0:00:16]} 44. Nxe3 {[%emt 0:00:03]} Bxe3 {[%emt 0:00:02]} 45. Rxe3 {[%emt 0:00:01]} Rd6 {[%emt 0:00:06]} 46. Re5 {[%emt 0:00:07]} Rd1+ {[%emt 0:00:11]} 47. Re1 {[%emt 0:00:09]} Rd2 {[%emt 0:00:02]} 48. Re2 {[%emt 0:00:02]} Rd1+ {[%emt 0:00:02]} 49. Re1 {[%emt 0:00:01]} Rd2 {[%emt 0:00:02]} 50. Re2 {[%emt 0:00:07]} Rd1+ {[%emt 0:00:02]} 51. Re1 {[%emt 0:00:01]} 1/2-1/2

[Event "European Online Club-ch-B 2021"]
[Site "Online"]
[Date "2021.03.27"]
[Round "2.10"]
[White "Admiraal, Miguoel"]
[Black "Agrest, Inna"]
[Result "1-0"]
[ECO "A45"]
[WhiteElo "2475"]
[BlackElo "2285"]
[Annotator "ChessBase"]
[PlyCount "117"]
[EventDate "2021.03.27"]
[EventType "team-tourn"]
[EventCountry "NET"]
[SourceTitle "playchess.com"]
[Source "ChessBase"]
[SourceQuality "1"]
[TimeControl "900+5"]

1. d4 {[%emt 0:00:00]} Nf6 {[%emt 0:00:06]} 2. Bg5 {[%emt 0:00:02]} c5 {[%emt 0:00:02]} 3. d5 {[%emt 0:00:01]} Qb6 {[%emt 0:00:03]} 4. Nc3 {[%emt 0:00:01]} g6 {[%emt 0:00:10]} 5. e4 {[%emt 0:00:09]} d6 {[%emt 0:00:06]} 6. Bb5+ {[%emt 0:00:42]} Bd7 {[%emt 0:00:27]} 7. a4 {[%emt 0:00:14]} a6 {[%emt 0:01:00]} 8. a5 {[%emt 0:00:04]} Qc7 {[%emt 0:00:05]} 9. Be2 {[%emt 0:00:23]} Bg7 {[%emt 0:00:06]} 10. Nf3 {[%emt 0:00:02]} O-O {[%emt 0:00:37]} 11. Nd2 {[%emt 0:00:02]} b5 {[%emt 0:00:54]} 12. axb6 {[%emt 0:00:05]} Qxb6 {[%emt 0:00:02]} 13. Nc4 {[%emt 0:00:02]} Qc7 {[%emt 0:00:07]} 14. O-O {[%emt 0:00:05]} Ra7 {[%emt 0:00:32]} 15. Qd2 {[%emt 0:00:09]} Bb5 {[%emt 0:00:22]} 16. Ra2 {[%emt 0:00:47]} Nbd7 {[%emt 0:00:10]} 17. Rfa1 {[%emt 0:00:06]} Bxc4 {[%emt 0:03:43]} 18. Bxc4 {[%emt 0:00:04]} Ne5 {[%emt 0:00:06]} 19. Bxa6 {[%emt 0:00:51]} Qb6 {[%emt 0:00:33]} 20. Bf1 {[%emt 0:01:55]} Rfa8 {[%emt 0:00:29]} 21. Rxa7 {[%emt 0:00:03]} Rxa7 {[%emt 0:00:02]} 22. Rxa7 {[%emt 0:00:01]} Qxa7 {[%emt 0:00:00]} 23. h3 {[%emt 0:00:10]} Qa1 {[%emt 0:00:15]} 24. Qc1 {[%emt 0:00:04]} Qa5 {[%emt 0:00:19]} 25. Bd2 {[%emt 0:01:49]} Qb4 {[%emt 0:01:27]} 26. f3 {[%emt 0:00:04]} Nc4 {[%emt 0:00:39]} 27. Bxc4 {[%emt 0:00:02]} Qxc4 {[%emt 0:00:02]} 28. Qf1 {[%emt 0:00:22]} Qd4+ {[%emt 0:00:31]} 29. Qf2 {[%emt 0:00:02]} Qb4 {[%emt 0:00:44]} 30. Nd1 {[%emt 0:00:19]} Qa4 {[%emt 0:00:13]} 31. Bc3 {[%emt 0:00:10]} Nd7 {[%emt 0:00:23]} 32. Qd2 {[%emt 0:00:21]} Ne5 {[%emt 0:00:19]} 33. Bxe5 {[%emt 0:00:27]} Bxe5 {[%emt 0:00:00]} 34. c3 {[%emt 0:00:06]} Qa1 {[%emt 0:00:15]} 35. Kf2 {[%emt 0:00:07]} h5 {[%emt 0:00:09]} 36. h4 {[%emt 0:00:33]} Qb1 {[%emt 0:00:18]} 37. g3 {[%emt 0:00:10]} Bf6 {[%emt 0:00:44]} 38. Kg2 {[%emt 0:00:15]} Be5 {[%emt 0:00:07]} 39. Nf2 {[%emt 0:00:13]} Bf6 {[%emt 0:00:26]} 40. Qe2 {[%emt 0:00:25]} Bg7 {[%emt 0:00:16]} 41. Nd1 {[%emt 0:00:33]} Bf6 {[%emt 0:00:09]} 42. Ne3 {[%emt 0:00:03]} Bg7 {[%emt 0:00:09]} 43. Nc4 {[%emt 0:00:02]} Bf6 {[%emt 0:00:26]} 44. f4 {[%emt 0:00:34]} Bg7 {[%emt 0:00:09]} 45. e5 {[%emt 0:00:04]} Bf8 {[%emt 0:00:20]} 46. e6 {[%emt 0:02:16]} f5 {[%emt 0:00:21]} 47. Kh2 {[%emt 0:00:26]} Qc1 {[%emt 0:00:19]} 48. Kg2 {[%emt 0:01:33]} Qb1 {[%emt 0:00:02]} 49. Nb6 {[%emt 0:00:05]} Bg7 {[%emt 0:00:04]} 50. Nc8 {[%emt 0:00:03]} Bf6 {[%emt 0:00:04]} 51. Kh2 {[%emt 0:00:40]} Kf8 {[%emt 0:00:05]} 52. Nb6 {[%emt 0:00:03]} Kg7 {[%emt 0:00:03]} 53. Nd7 {[%emt 0:00:04]} Qc1 {[%emt 0:00:12]} 54. Kg2 {[%emt 0:00:09]} Qb1 {[%emt 0:00:02]} 55. Qd2 {[%emt 0:00:05]} Qe4+ {[%emt 0:00:06]} 56. Kh2 {[%emt 0:00:03]} Qb1 {[%emt 0:00:02]} 57. Nxf6 {[%emt 0:00:07]} Kxf6 {[%emt 0:00:00]} 58. b4 {[%emt 0:00:02]} cxb4 {[%emt 0:00:14]} 59. Qd4# {[%emt 0:00:02]} 1-0

[Event "European Online Club-ch-B 2021"]
[Site "Online"]
[Date "2021.03.27"]
[Round "2.11"]
[White "Rasti, Arvin"]
[Black "Matnadze, Ana"]
[Result "0-1"]
[ECO "D37"]
[WhiteElo "2195"]
[BlackElo "2421"]
[Annotator "NA"]
[PlyCount "106"]
[EventDate "2021.03.27"]
[EventType "team-tourn"]
[EventCountry "NET"]
[SourceTitle "playchess.com"]
[Source "ChessBase"]
[SourceQuality "1"]
[TimeControl "900+5"]

1. d4 {[%emt 0:00:00]} Nf6 {[%emt 0:00:08]} 2. c4 {[%emt 0:00:03]} e6 {[%emt 0:00:03]} 3. Nc3 {[%emt 0:00:15]} d5 {[%emt 0:00:03]} 4. Nf3 {[%emt 0:00:02]} Be7 {[%emt 0:00:12]} 5. Bf4 {[%emt 0:00:13]} c6 {[%emt 0:00:02]} 6. e3 {[%emt 0:00:01]} O-O {[%emt 0:00:05]} 7. Qc2 {[%emt 0:00:12]} Nbd7 {[%emt 0:00:17]} 8. O-O-O {[%emt 0:00:11]} Nb6 {[%emt 0:00:20]} 9. Ne5 {[%emt 0:00:16]} dxc4 {[%emt 0:00:11]} 10. Nxc4 {[%emt 0:00:04]} Nbd5 {[%emt 0:00:02]} 11. Bg3 {[%emt 0:00:06]} b5 {[%emt 0:00:04]} 12. Ne5 {[%emt 0:00:22]} Bd7 {[%emt 0:00:02]} 13. Kb1 {[%emt 0:00:21]} Rc8 {[%emt 0:00:12]} 14. Nxd5 {[%emt 0:00:49]} Nxd5 {[%emt 0:00:24]} 15. Nd3 {[%emt 0:00:09]} Nb4 {[%emt 0:00:21]} 16. Nxb4 {[%emt 0:00:26]} Bxb4 {[%emt 0:00:04]} 17. Bd3 {[%emt 0:00:02]} f5 {[%emt 0:00:09]} 18. a3 {[%emt 0:00:33]} Be7 {[%emt 0:00:06]} 19. Qe2 {[%emt 0:00:20]} a5 {[%emt 0:00:10]} 20. Be5 {[%emt 0:00:12]} Bf6 {[%emt 0:00:09]} 21. g4 {[%emt 0:00:17]} Qe7 {[%emt 0:00:30]} 22. f4 {[%emt 0:00:36]} a4 {[%emt 0:01:25]} 23. Qd2 {[%emt 0:02:47]} Rfd8 {[%emt 0:01:44]} 24. Rhg1 {[%emt 0:00:28]} Kh8 {[%emt 0:00:28]} 25. Qb4 {[%emt 0:00:49]} Qf7 {[%emt 0:01:23]} 26. Bxf6 {[%emt 0:00:49]} Qxf6 {[%emt 0:00:27]} 27. g5 {[%emt 0:00:03]} Qf8 {[%emt 0:00:21]} 28. Rc1 {[%emt 0:00:33]} Qxb4 {[%emt 0:00:16]} 29. axb4 {[%emt 0:00:03]} Kg8 {[%emt 0:00:07]} 30. Rc5 {[%emt 0:00:04]} Kf8 {[%emt 0:00:04]} 31. Rgc1 {[%emt 0:00:05]} Ke7 {[%emt 0:00:03]} 32. h4 {[%emt 0:00:05]} Kd6 {[%emt 0:00:03]} 33. Be2 {[%emt 0:00:20]} Ra8 {[%emt 0:00:07]} 34. R1c3 {[%emt 0:00:08]} Rf8 {[%emt 0:00:09]} 35. Bf3 {[%emt 0:00:17]} Ra6 {[%emt 0:00:04]} 36. Ra3 {[%emt 0:00:46]} Rb6 {[%emt 0:00:20]} 37. Kc2 {[%emt 0:00:25]} h6 {[%emt 0:00:12]} 38. g6 {[%emt 0:00:31]} h5 {[%emt 0:00:15]} 39. Ra1 {[%emt 0:00:10]} Ra6 {[%emt 0:00:24]} 40. Rc3 {[%emt 0:00:06]} Ke7 {[%emt 0:00:17]} 41. Rg1 {[%emt 0:00:12]} Kf6 {[%emt 0:00:12]} 42. Bxh5 {[%emt 0:00:17]} Rh8 {[%emt 0:00:03]} 43. Rg5 {[%emt 0:00:07]} Be8 {[%emt 0:00:43]} 44. Rc5 {[%emt 0:01:28]} a3 {[%emt 0:00:14]} 45. bxa3 {[%emt 0:00:03]} Rxa3 {[%emt 0:00:03]} 46. e4 {[%emt 0:00:53]} fxe4 {[%emt 0:00:58]} 47. f5 {[%emt 0:00:02]} e3 {[%emt 0:00:21]} 48. Re5 {[%emt 0:00:12]} Bd7 {[%emt 0:00:21]} 49. Kb2 {[%emt 0:00:43]} Rd3 {[%emt 0:00:15]} 50. Kc2 {[%emt 0:00:42]} Rxd4 {[%emt 0:00:12]} 51. fxe6 {[%emt 0:00:11]} Bxe6 {[%emt 0:00:07]} 52. Bf3 {[%emt 0:00:22]} Rhxh4 {[%emt 0:00:11]} 53. Bxc6 {[%emt 0:00:03]} Rc4+ {[%emt 0:00:07]} 0-1

[Event "European Online Club-ch-B 2021"]
[Site "Online"]
[Date "2021.03.27"]
[Round "2.12"]
[White "Grochal, Joey"]
[Black "Wengholm, Anders"]
[Result "1/2-1/2"]
[ECO "A41"]
[WhiteElo "2335"]
[BlackElo "2198"]
[Annotator "NA"]
[PlyCount "111"]
[EventDate "2021.03.27"]
[EventType "team-tourn"]
[EventCountry "NET"]
[SourceTitle "playchess.com"]
[Source "ChessBase"]
[SourceQuality "1"]
[TimeControl "900+5"]

1. d4 {[%emt 0:00:00]} d6 {[%emt 0:00:06]} 2. Nf3 {[%emt 0:00:05]} g6 {[%emt 0:00:02]} 3. c4 {[%emt 0:00:03]} Bg7 {[%emt 0:00:02]} 4. Nc3 {[%emt 0:00:06]} e5 {[%emt 0:00:03]} 5. dxe5 {[%emt 0:00:12]} dxe5 {[%emt 0:00:02]} 6. Qxd8+ {[%emt 0:00:00]} Kxd8 {[%emt 0:00:02]} 7. Bg5+ {[%emt 0:00:21]} f6 {[%emt 0:00:17]} 8. Rd1+ {[%emt 0:00:03]} Ke8 {[%emt 0:00:31]} 9. Bc1 {[%emt 0:00:11]} c6 {[%emt 0:00:09]} 10. Ne4 {[%emt 0:00:16]} Bf8 {[%emt 0:00:44]} 11. e3 {[%emt 0:00:39]} a5 {[%emt 0:00:42]} 12. Nd6+ {[%emt 0:01:03]} Bxd6 {[%emt 0:00:04]} 13. Rxd6 {[%emt 0:00:00]} Ke7 {[%emt 0:00:01]} 14. Rd2 {[%emt 0:00:13]} Be6 {[%emt 0:00:04]} 15. b3 {[%emt 0:00:02]} Na6 {[%emt 0:00:03]} 16. Be2 {[%emt 0:00:25]} Nh6 {[%emt 0:00:03]} 17. O-O {[%emt 0:00:42]} Rhd8 {[%emt 0:00:04]} 18. Rfd1 {[%emt 0:00:24]} Nb4 {[%emt 0:01:07]} 19. a3 {[%emt 0:01:30]} Na6 {[%emt 0:00:07]} 20. Bb2 {[%emt 0:00:22]} Rxd2 {[%emt 0:00:30]} 21. Nxd2 {[%emt 0:00:29]} Nc5 {[%emt 0:00:08]} 22. Bc3 {[%emt 0:01:14]} Nf7 {[%emt 0:00:43]} 23. f4 {[%emt 0:01:05]} Bf5 {[%emt 0:01:20]} 24. b4 {[%emt 0:00:54]} Na4 {[%emt 0:00:47]} 25. Ba1 {[%emt 0:00:04]} axb4 {[%emt 0:00:02]} 26. axb4 {[%emt 0:00:12]} Nb6 {[%emt 0:00:01]} 27. e4 {[%emt 0:00:28]} Be6 {[%emt 0:00:05]} 28. c5 {[%emt 0:00:05]} Nd7 {[%emt 0:00:04]} 29. g3 {[%emt 0:00:36]} Ra4 {[%emt 0:01:19]} 30. Bc3 {[%emt 0:00:06]} Ra3 {[%emt 0:00:02]} 31. Rc1 {[%emt 0:00:11]} h5 {[%emt 0:00:45]} 32. Nc4 {[%emt 0:00:24]} Ra2 {[%emt 0:00:08]} 33. Bd3 {[%emt 0:00:38]} h4 {[%emt 0:00:08]} 34. Ra1 {[%emt 0:00:16]} Rxa1+ {[%emt 0:00:07]} 35. Bxa1 {[%emt 0:00:00]} hxg3 {[%emt 0:00:05]} 36. hxg3 {[%emt 0:00:01]} Bxc4 {[%emt 0:01:15]} 37. Bxc4 {[%emt 0:00:00]} Nd8 {[%emt 0:00:06]} 38. Kf2 {[%emt 0:00:11]} b6 {[%emt 0:00:39]} 39. cxb6 {[%emt 0:00:11]} Nxb6 {[%emt 0:00:02]} 40. Bd3 {[%emt 0:00:13]} Nd7 {[%emt 0:00:04]} 41. Ke3 {[%emt 0:00:23]} Nf7 {[%emt 0:00:04]} 42. Bb2 {[%emt 0:00:28]} Nd6 {[%emt 0:00:04]} 43. Bc3 {[%emt 0:01:00]} Nb5 {[%emt 0:02:42]} 44. Bb2 {[%emt 0:00:05]} Nd6 {[%emt 0:00:02]} 45. Kf3 {[%emt 0:01:02]} c5 {[%emt 0:00:24]} 46. fxe5 {[%emt 0:00:26]} fxe5 {[%emt 0:00:13]} 47. bxc5 {[%emt 0:00:07]} Nxc5 {[%emt 0:00:02]} 48. Bb1 {[%emt 0:00:24]} Nc4 {[%emt 0:00:10]} 49. Bc3 {[%emt 0:00:21]} Kf6 {[%emt 0:00:16]} 50. Ba2 {[%emt 0:00:13]} Nd6 {[%emt 0:00:06]} 51. Bd5 {[%emt 0:00:03]} Ne6 {[%emt 0:00:11]} 52. Bb2 {[%emt 0:00:29]} Ng5+ {[%emt 0:00:05]} 53. Ke3 {[%emt 0:00:01]} Ne6 {[%emt 0:00:08]} 54. Kf3 {[%emt 0:00:02]} Ng5+ {[%emt 0:00:02]} 55. Ke3 {[%emt 0:00:03]} Ne6 {[%emt 0:00:02]} 56. Kf3 {[%emt 0:00:01]} 1/2-1/2

[Event "European Online Club-ch-B 2021"]
[Site "Online"]
[Date "2021.03.27"]
[Round "2.13"]
[White "Brunner, Nicolas"]
[Black "Fontaine, Robert"]
[Result "0-1"]
[ECO "D15"]
[WhiteElo "2418"]
[BlackElo "2550"]
[Annotator "ChessBase"]
[PlyCount "80"]
[EventDate "2021.03.27"]
[EventType "team-tourn"]
[EventCountry "NET"]
[SourceTitle "playchess.com"]
[Source "ChessBase"]
[SourceQuality "1"]
[TimeControl "900+5"]

1. d4 {[%emt 0:00:00]} d5 {[%emt 0:00:03]} 2. c4 {[%emt 0:00:03]} c6 {[%emt 0:00:03]} 3. Nf3 {[%emt 0:00:01]} Nf6 {[%emt 0:00:02]} 4. Nc3 {[%emt 0:00:02]} a6 {[%emt 0:00:03]} 5. c5 {[%emt 0:00:15]} Nbd7 {[%emt 0:00:03]} 6. Bf4 {[%emt 0:00:02]} g6 {[%emt 0:00:16]} 7. h3 {[%emt 0:00:13]} Bg7 {[%emt 0:00:03]} 8. e3 {[%emt 0:00:02]} O-O {[%emt 0:00:03]} 9. Bd3 {[%emt 0:00:46]} Re8 {[%emt 0:00:22]} 10. O-O {[%emt 0:00:04]} Nh5 {[%emt 0:00:11]} 11. Bh2 {[%emt 0:00:24]} e5 {[%emt 0:00:12]} 12. Nxe5 {[%emt 0:00:04]} Nxe5 {[%emt 0:00:07]} 13. dxe5 {[%emt 0:00:01]} Bxe5 {[%emt 0:00:03]} 14. Qd2 {[%emt 0:01:19]} Bxh2+ {[%emt 0:00:19]} 15. Kxh2 {[%emt 0:00:02]} d4 {[%emt 0:00:21]} 16. Ne4 {[%emt 0:02:14]} dxe3 {[%emt 0:00:46]} 17. Qxe3 {[%emt 0:00:03]} f5 {[%emt 0:01:26]} 18. Bc4+ {[%emt 0:00:03]} Be6 {[%emt 0:00:28]} 19. Qb3 {[%emt 0:00:26]} fxe4 {[%emt 0:02:03]} 20. Bxe6+ {[%emt 0:00:03]} Kh8 {[%emt 0:00:01]} 21. Rad1 {[%emt 0:02:56]} Qe7 {[%emt 0:00:14]} 22. Qc3+ {[%emt 0:00:47]} Qf6 {[%emt 0:00:17]} 23. Qxf6+ {[%emt 0:00:36]} Nxf6 {[%emt 0:00:03]} 24. Bc4 {[%emt 0:01:04]} Re5 {[%emt 0:00:10]} 25. b4 {[%emt 0:00:08]} a5 {[%emt 0:00:03]} 26. a3 {[%emt 0:00:02]} axb4 {[%emt 0:00:02]} 27. axb4 {[%emt 0:00:01]} Ra4 {[%emt 0:00:08]} 28. Rd8+ {[%emt 0:00:18]} Kg7 {[%emt 0:00:04]} 29. Rb1 {[%emt 0:00:21]} Re7 {[%emt 0:00:35]} 30. Rb8 {[%emt 0:00:18]} g5 {[%emt 0:00:14]} 31. h4 {[%emt 0:02:09]} gxh4 {[%emt 0:00:45]} 32. Kh3 {[%emt 0:00:07]} e3 {[%emt 0:00:02]} 33. fxe3 {[%emt 0:01:06]} Rxe3+ {[%emt 0:00:03]} 34. Kh2 {[%emt 0:00:01]} Re7 {[%emt 0:00:13]} 35. Kh3 {[%emt 0:00:07]} Ra3+ {[%emt 0:00:02]} 36. Kh2 {[%emt 0:00:17]} Rc3 {[%emt 0:00:16]} 37. Ba2 {[%emt 0:00:32]} Ng4+ {[%emt 0:00:12]} 38. Kg1 {[%emt 0:00:03]} Rg3 {[%emt 0:00:08]} 39. Rg8+ {[%emt 0:00:49]} Kh6 {[%emt 0:00:02]} 40. Kh1 {[%emt 0:00:23]} Re2 {[%emt 0:00:34]} 0-1